Cogmind - Beta 12 X1 @@@ ROGUE MODE // 2022.08.02 @ 13:52:26 Player: Exp. Geonium Core Result: Destroyed by S-27 Virus with Autogun Performance ------------- Evolutions (3) 1500 Regions Visited (10) 2000 Robots Destroyed (83) 415 Value Destroyed (2746) 2746 Prototype IDs (27) 540 Alien Tech Used (0) 0 Bonus (1415) 1415 TOTAL SCORE: 8616 Bonus ------- High Alert Combat Kills 215 Entered Garrisons 400 Used RIF Installer 500 Aligned with FarCom 300 Cogmind --------- Core Integrity 0/700 Matter 252/300 Energy 79/100 System Corruption 1% Temperature Cool (0) Movement Core (50) Location -7/Garrison Parts ------- > --- POWER (1) -------- (None) > --- PROPULSION (2) --- (None) > --- UTILITY (7) ------ Advanced Visual Processing Unit Modified TNC Improved Targeting Computer Hacking Suite System Shield > --- WEAPON (3) ------- Mini Grenade Launcher > --- INVENTORY (5) ---- Relay Coupler [NC] (22) Remote Datajack Remote Datajack Remote Datajack Peak State ------------ > --- POWER ------------ Light Angular Momentum Engine > --- PROPULSION ------- Improved Heavy Treads > --- UTILITY ---------- Advanced Heat Sink Coolant Injector High-capacity Storage Unit Modified TNC Improved Targeting Computer Hacking Suite System Shield > --- WEAPON ----------- PD Laser > --- INVENTORY -------- Improved Heat Sink Advanced Visual Processing Unit Experimental Sensor Array System Shield Relay Coupler [NC] Relay Coupler [NC] Relay Coupler [Swarmer] Relay Coupler [Swarmer] Relay Coupler [Duelist] Relay Coupler [Duelist] Relay Coupler [Hunter] Assault Rifle Light Assault Rifle Light Assault Rifle Mini Grenade Launcher Mini Grenade Launcher Datajack Remote Datajack Remote Datajack Remote Datajack [Rating: 69] Favorites ----------- Power Light Angular Momentum Engine Engine Light Angular Momentum Engine Power Core Light Nuclear Core Propulsion Aluminum Leg Treads Light Treads Leg Aluminum Leg Wheel Wheel Utility Modified TNC Device Improved Heat Sink Storage High-capacity Storage Unit Processor Modified TNC Hackware System Shield Protection Light Armor Plating Weapon Assault Rifle Energy Gun PD Laser Ballistic Gun Assault Rifle Launcher Mini Grenade Launcher Build | -11 -10 -10 -9 -9 -9 -8 -8 -8 -7 -7 ------- Run | Scr Mat Min Mat Min Exi Min Mat Gar Fac Gar Slots Evolved 6 | . . . 2 . . . 2 . 2 . Power . | . . . . . . . . . . . Propulsion . | . . . . . . . . . . . Utility 5 | . . . 2 . . . 2 . 1 . Weapon 1 | . . . . . . . . . 1 . Parts Attached 64 | 1 8 1 6 2 2 . 14 20 9 1 Power 3 | . 1 . . . . . 1 1 . . Engine 2 | . . . . . . . 1 1 . . Core 1 | . 1 . . . . . . . . . Reactor . | . . . . . . . . . . . Propulsion 14 | . 2 . 3 . . . 3 6 . . Treads 5 | . 2 . . . . . 1 2 . . Leg 5 | . . . 3 . . . 1 1 . . Wheel 4 | . . . . . . . 1 3 . . Hover . | . . . . . . . . . . . Flight . | . . . . . . . . . . . Utility 18 | . 2 . 1 1 1 . 5 3 5 . Device 8 | . 1 . 1 1 . . 1 3 1 . Storage 2 | . 1 . . . . . 1 . . . Processor 4 | . . . . . 1 . . . 3 . Hackware 3 | . . . . . . . 2 . 1 . Protection 1 | . . . . . . . 1 . . . Artifact . | . . . . . . . . . . . Weapon 29 | 1 3 1 2 1 1 . 5 10 4 1 Energy Gun 3 | . . . . . . . 1 1 1 . Energy Cannon . | . . . . . . . . . . . Ballistic Gun 16 | 1 3 1 1 . . . 2 5 3 . Ballistic Cannon . | . . . . . . . . . . . Launcher 10 | . . . 1 1 1 . 2 4 . 1 Special Weapon . | . . . . . . . . . . . Impact Weapon . | . . . . . . . . . . . Slashing Weapon . | . . . . . . . . . . . Piercing Weapon . | . . . . . . . . . . . Special Melee Weapon . | . . . . . . . . . . . Unidentified Prototypes 4 | . . . 1 1 . . 1 1 . . Parts Lost 30 | . 4 2 6 . . 1 3 7 7 . Power 3 | . 1 . 1 . . . . . 1 . Propulsion 10 | . 2 . 2 . . 1 . 4 1 . Utility 6 | . . 1 1 . . . 1 1 2 . Weapon 11 | . 1 1 2 . . . 2 2 3 . Highest Loss Streak 6 | . 4 1 3 . . 1 2 3 6 . To Critical Strikes 1 | . . . . . . . . 1 . . Average Slot Usage (%) 72 | . 87 95 72 54 38 55 60 83 70 38 Engine 4 | . 6 . . . . . 3 9 6 . Core 2 | . 5 14 9 . . . . . . . Treads 7 | . 15 28 7 . . . 8 5 6 . Leg 8 | . 11 . 14 22 22 22 . 3 . . Wheel 1 | . . . . . . . 8 3 . . Device 10 | . 5 9 10 . . . . 18 15 . Storage 9 | . 14 14 11 11 11 11 9 9 6 . Processor 6 | . . . . . 4 11 9 9 15 23 Hackware 4 | . . . . . . . 3 9 10 15 Energy Gun 1 | . . . . . . . 3 . 6 . Ballistic Gun 9 | . 27 28 19 . . . 5 10 . . Launcher 5 | . . . 1 21 1 11 5 5 . . Naked Turns . | . . . . . . . . . . . Heaviest Build 62 | 12 30 30 37 22 22 21 57 57 62 . Greatest Support 75 | 20 40 40 40 20 20 20 20 75 75 3 Greatest Overweight (x) 5 | . . . 1 1 1 2 5 5 . . Average Overweight (x) . | . . . . 1 . 1 4 1 . . Largest Inventory Capacity 20 | 8 15 15 15 15 15 15 20 20 20 5 Average Capacity 17 | 8 9 15 15 15 15 15 19 20 19 5 Most Carried 20 | 6 8 6 15 15 15 14 18 20 20 5 Average Carried 15 | 6 6 5 9 14 14 14 15 19 18 5 Final Capacity 20 | 8 15 15 15 15 15 15 20 20 5 5 Final Carried 18 | 6 6 6 15 15 14 14 18 18 5 4 Class Distribution -------------------- 50% | Mutant 31% | Scavenger-Mutant 11% | Bothacker-Skirmisher 3% | Bothacker-Gunner Dominant Class ---------------- Mutant | -10/Materials Mutant | -10/Mines Mutant | -9/Materials Mutant | -9/Mines Mutant | -9/Exiles Mutant | -8/Mines Mutant | -8/Materials Scavenger-Mutant | -8/Garrison Bothacker-Skirmisher | -7/Factory Bothacker-Skirmisher | -7/Garrison Resources | -11 -10 -10 -9 -9 -9 -8 -8 -8 -7 -7 ----------- Run | Scr Mat Min Mat Min Exi Min Mat Gar Fac Gar Matter Collected 1651 | 200 123 66 309 33 . 20 173 526 201 . Remotely . | . . . . . . . . . . . Salvage Created 2471 | . 391 99 514 7 . 9 141 724 586 . Parts 169 | . 22 13 29 . . 4 23 46 32 . Haulers Intercepted 1 | . . . . . . . . . 1 . Recyclers Shooed 6 | . 1 . 1 . . . 3 . 1 . Parts Field Recycled . | . . . . . . . . . . . Retrieved Matter . | . . . . . . . . . . . Parts Self-Destructed . | . . . . . . . . . . . Prevented . | . . . . . . . . . . . Kills | -11 -10 -10 -9 -9 -9 -8 -8 -8 -7 -7 ------- Run | Scr Mat Min Mat Min Exi Min Mat Gar Fac Gar Combat Hostiles Destroyed 67 | . 9 6 17 4 . 2 5 20 4 . Guns 34 | . 9 6 12 . . . 2 3 2 . AOE 33 | . . . 5 4 . 2 3 17 2 . Classes Destroyed 13 | . 2 1 2 1 . . 4 1 2 . Worker 5 | . 1 . 1 . . . . . 3 . Builder 5 | . . . . . . . 2 . 3 . Tunneler 1 | . . . . . . . 1 . . . Hauler 1 | . . . . . . . . . 1 . Recycler 4 | . . . 1 . . . . . 3 . Operator 1 | . . . . . . . 1 . . . Watcher 3 | . . . . . . . . . 3 . Swarmer 20 | . . 6 6 . . 2 3 3 . . Grunt 34 | . 9 . 10 . . . . 13 2 . Sentry 3 | . . . 1 . . . 1 1 . . Hunter 1 | . . . . . . . . 1 . . Programmer 5 | . . . . . . . 1 2 2 . Assembled 4 | . . . . 4 . . . . . . Best Kill Streak 10 | . 8 3 8 4 . 2 4 6 10 . Combat Bots Only 8 | . 8 3 6 4 . 2 3 6 2 . Max Kills in Single Turn 8 | . 2 1 2 2 . 1 4 3 8 . Gunslinging . | . . . . . . . . . . . Exploded 3 | . . . 2 2 . 1 3 3 2 . Melee . | . . . . . . . . . . . Uniques/NPCs Destroyed . | . . . . . . . . . . . Combat | -11 -10 -10 -9 -9 -9 -8 -8 -8 -7 -7 -------- Run | Scr Mat Min Mat Min Exi Min Mat Gar Fac Gar Damage Taken 4893 | . 743 152 813 86 . 131 521 993 1423 31 Core 1357 | . 127 18 116 47 . 49 89 205 675 31 Absorbed by Shields . | . . . . . . . . . . . Core Remaining (%) 58 | 100 . 42 . . . 47 . 46 . . Volleys Fired 189 | . 31 12 49 3 . 2 16 66 10 . Largest 2 | . 2 2 2 2 . 1 2 2 1 . Hottest 73 | . 40 40 40 60 . 30 73 53 20 . Shots Fired 321 | . 59 23 92 6 . 2 22 84 33 . Gun 264 | . 59 23 86 . . . 20 43 33 . Cannon . | . . . . . . . . . . . Launcher 57 | . . . 6 6 . 2 2 41 . . Special . | . . . . . . . . . . . Kinetic 225 | . 59 23 86 . . . 14 33 10 . Thermal 23 | . . . . . . . . . 23 . Explosive 57 | . . . 6 6 . 2 2 41 . . Electromagnetic 16 | . . . . . . . 6 10 . . Robot Hit Streak 16 | . 16 2 15 5 . . 8 9 6 . Robot Miss Streak 14 | . 3 3 3 . . . 1 2 14 . Penetration Max . | . . . . . . . . . . . Secondary Targets 3 | . 2 1 . . . . . . . . Max Gunslinging Chain 1 | . 1 1 . . . . . . . . Autonomous 34 | . . . . . . . . . 34 . Shots Hit Robots 202 | . 45 11 57 4 . . 16 47 22 . Core Hits 164 | . 20 7 34 6 . 2 15 61 19 . Critical Kills 1 | . 1 . . . . . . . . . Critical Parts Destroyed 1 | . . 1 . . . . . . . . Critical Strikes 2 | . 1 1 . . . . . . . . Destroy 2 | . 1 1 . . . . . . . . Melee Attacks . | . . . . . . . . . . . Impact . | . . . . . . . . . . . Slashing . | . . . . . . . . . . . Piercing . | . . . . . . . . . . . Sneak Attacks . | . . . . . . . . . . . Combat Hostiles . | . . . . . . . . . . . Follow-up Attacks . | . . . . . . . . . . . Damage Inflicted 7149 | . 585 137 1353 299 . 126 593 2504 1552 . Guns 2969 | . 585 126 731 . . . 273 521 733 . Cannons . | . . . . . . . . . . . Explosions 4015 | . . . 602 299 . 117 309 1915 773 . Melee . | . . . . . . . . . . . Ramming 165 | . . 11 20 . . 9 11 68 46 . Kinetic 1999 | . 585 126 731 . . . 156 337 64 . Thermal 1442 | . . . . . . . . . 1442 . Explosive 3242 | . . . 602 299 . 117 309 1915 . . Electromagnetic 301 | . . . . . . . 117 184 . . Impact . | . . . . . . . . . . . Slashing . | . . . . . . . . . . . Piercing . | . . . . . . . . . . . Highest Corruption 2 | . . . 2 2 2 2 1 2 1 1 Average Corruption 1 | . . . 1 2 2 2 1 1 1 1 Corruption Purged . | . . . . . . . . . . . Corruption Blocked . | . . . . . . . . . . . Effects 45 | . . . 2 11 3 1 . 25 3 . Message Errors 12 | . . . . 4 . . . 8 . . Matter Fused 10 | . . . . 1 2 1 . 5 1 . Heat Flow Errors 3 | . . . . 1 . . . 2 . . Energy Discharges 8 | . . . . . 1 . . 6 1 . Parts Rejected 1 | . . . . . . . . . 1 . Data Loss (minor) 5 | . . . 1 2 . . . 2 . . Data Loss (major) 3 | . . . . 2 . . . 1 . . Misfires 3 | . . . 1 1 . . . 1 . . Overload Shots . | . . . . . . . . . . . Overflow Damage 179 | . . . 17 21 . 15 . 6 120 . Projectiles . | . . . . . . . . . . . Explosions 179 | . . . 17 21 . 15 . 6 120 . Melee . | . . . . . . . . . . . Knockbacks 5 | . . . . . . . . 5 . . Impact 5 | . . . . . . . . 5 . . Kinetic . | . . . . . . . . . . . Secondary . | . . . . . . . . . . . Self-Inflicted Damage 415 | . . . 99 23 . . 14 274 5 . Shots 20 | . . . 4 3 . . 1 12 . . Rammed 10 | . . 1 . . . . 2 . 7 . Targets Rammed 82 | . . 1 3 . . 1 2 67 8 . Kicked 71 | . . . 3 . . 1 . 67 . . Crushed 1 | . . . . . . . . . 1 . Highest Temperature 197 | . 46 . 1 116 . . 2 169 197 . Average Temperature 41 | . 16 . 1 40 . . 2 74 54 . Received Heat Transfer 1736 | . 468 . 336 20 . 54 81 324 453 . Siege Activations . | . . . . . . . . . . . Robots Corrupted . | . . . . . . . . . . . Combat Hostiles . | . . . . . . . . . . . Parts Fried 2 | . . . . . . . 2 . . . Impact Corruptions . | . . . . . . . . . . . Robots Melted . | . . . . . . . . . . . Combat Hostiles . | . . . . . . . . . . . Parts Melted . | . . . . . . . . . . . Heat Transferred 1100 | . . . . . . . . . 1100 . Parts Sabotaged . | . . . . . . . . . . . Parts Stolen . | . . . . . . . . . . . Parts Stripped . | . . . . . . . . . . . Power Chain Reactions . | . . . . . . . . . . . Missiles Intercepted . | . . . . . . . . . . . Alert | -11 -10 -10 -9 -9 -9 -8 -8 -8 -7 -7 ------- Run | Scr Mat Min Mat Min Exi Min Mat Gar Fac Gar Peak Influence 997 | . 214 203 399 259 . 75 192 997 703 373 Initial 522 | . . 83 . 127 . . 25 124 522 373 Average 334 | . 125 120 170 151 . 15 114 548 509 373 Maximum Alert Level 3 | . 1 1 1 1 . . . 3 3 1 Low Security (%) 36 | 100 58 89 50 55 . 100 100 6 . . Level 1 19 | . 41 10 49 44 . . . 13 . 100 Level 2 34 | . . . . . . . . 51 99 . Level 3 9 | . . . . . . . . 28 . . Level 4 . | . . . . . . . . . . . Level 5 . | . . . . . . . . . . . High Security . | . . . . . . . . . . . Max Security . | . . . . . . . . . . . Squads Dispatched 9 | . 2 . 2 . . . . . 5 . Investigation 1 | . 1 . . . . . . . . . Extermination 2 | . . . . . . . . . 2 . Reinforcement 4 | . 1 . 2 . . . . . 1 . Assault 2 | . . . . . . . . . 2 . Garrison . | . . . . . . . . . . . Intercept . | . . . . . . . . . . . Searches Triggered . | . . . . . . . . . . . Construction Impeded . | . . . . . . . . . . . Haulers Reinforced . | . . . . . . . . . . . Active Scanning Responses . | . . . . . . . . . . . Cargo Convoy Interrupts . | . . . . . . . . . . . Stealth | -11 -10 -10 -9 -9 -9 -8 -8 -8 -7 -7 --------- Run | Scr Mat Min Mat Min Exi Min Mat Gar Fac Gar Distress Signals 7 | . . . 6 . . . 1 . . . Communications Jammed . | . . . . . . . . . . . Distress Signals . | . . . . . . . . . . . Times Spotted 111 | . 14 9 26 4 . 6 9 21 19 3 Peak Tracking Total 9 | . 8 3 8 4 . 4 6 3 9 6 Tactical Retreats 2 | . . . . . . 1 . 1 . . Traps | -11 -10 -10 -9 -9 -9 -8 -8 -8 -7 -7 ------- Run | Scr Mat Min Mat Min Exi Min Mat Gar Fac Gar Traps Triggered 3 | . 1 . 2 . . . . . . . Indirectly . | . . . . . . . . . . . Trap Hack Attempts . | . . . . . . . . . . . Triggered . | . . . . . . . . . . . Disarmed . | . . . . . . . . . . . Reprogrammed . | . . . . . . . . . . . Reused . | . . . . . . . . . . . Traps Extracted . | . . . . . . . . . . . Installed . | . . . . . . . . . . . Triggered . | . . . . . . . . . . . Machines | -11 -10 -10 -9 -9 -9 -8 -8 -8 -7 -7 ---------- Run | Scr Mat Min Mat Min Exi Min Mat Gar Fac Gar Machines Disabled 12 | . . . 1 1 . . 1 2 7 . Max in Single Turn 7 | . . . 1 1 . . 1 1 7 . Garrison Relay 2 | . . . . . . . . 2 . . Machines Sabotaged . | . . . . . . . . . . . Garrisons Compromised . | . . . . . . . . . . . Overloaded Fab Kills . | . . . . . . . . . . . Hacking | -11 -10 -10 -9 -9 -9 -8 -8 -8 -7 -7 --------- Run | Scr Mat Min Mat Min Exi Min Mat Gar Fac Gar Machines Accessed 11 | . 2 1 1 . 1 . 2 2 2 . Terminals 7 | . 2 . 1 . . . 1 2 1 . Fabricators . | . . . . . . . . . . . Repair Stations . | . . . . . . . . . . . Recycling Units . | . . . . . . . . . . . Scanalyzers . | . . . . . . . . . . . Garrison Access 2 | . . . . . . . 1 . 1 . Total Hacks 18 | . 3 1 1 . 1 . 5 4 3 . Successful 12 | . 2 1 1 . 1 . 4 1 2 . Failed 6 | . 1 . . . . . 1 3 1 . Catastrophic 2 | . 1 . . . . . . 1 . . Database Lockouts . | . . . . . . . . . . . Manual 8 | . 2 . 1 . 1 . 4 . . . Terminals 12 | . 3 . 1 . . . 2 4 2 . Fabricators . | . . . . . . . . . . . Repair Stations . | . . . . . . . . . . . Recycling Units . | . . . . . . . . . . . Scanalyzers . | . . . . . . . . . . . Garrison Access 4 | . . . . . . . 3 . 1 . Terminal Hacks 8 | . 2 1 1 . 1 . 1 1 1 . Part Schematic 1 | . . . . . . . 1 . . . Open Door 1 | . . 1 . . . . . . . . Branch Access Points 2 | . 1 . 1 . . . . . . . Emergency Access Points 1 | . . . . . . . . 1 . . Garrison Index 1 | . . . . . . . . . 1 . Zone Layout 1 | . 1 . . . . . . . . . EX-Prototype ID Bank 1 | . . . . . 1 . . . . . Fabricator Hacks . | . . . . . . . . . . . Repair Station Hacks . | . . . . . . . . . . . Recycling Unit Hacks . | . . . . . . . . . . . Scanalyzer . | . . . . . . . . . . . Garrison Access Hacks 2 | . . . . . . . 1 . 1 . Unlock Access 2 | . . . . . . . 1 . 1 . Unauthorized Hacks 2 | . . . . . . . 2 . . . Terminals . | . . . . . . . . . . . Fabricators . | . . . . . . . . . . . Repair Stations . | . . . . . . . . . . . Recycling Units . | . . . . . . . . . . . Scanalyzers . | . . . . . . . . . . . Garrison Access 2 | . . . . . . . 2 . . . Restock 1 | . . . . . . . 1 . . . Reprogram 1 | . . . . . . . 1 . . . Data Cores Recovered 1 | . . . . . . . 1 . . . Used . | . . . . . . . . . . . Hacking Detections 5 | . 1 . . . . . 1 2 1 . Full Trace Events . | . . . . . . . . . . . Feedback Events . | . . . . . . . . . . . Feedback Blocked . | . . . . . . . . . . . Robot Schematics Acquired . | . . . . . . . . . . . Robots Built . | . . . . . . . . . . . Authchips . | . . . . . . . . . . . Time . | . . . . . . . . . . . Total Robot Build Rating . | . . . . . . . . . . . Part Schematics Acquired 1 | . . . . . . . 1 . . . Parts Built . | . . . . . . . . . . . Authchips . | . . . . . . . . . . . Time . | . . . . . . . . . . . Total Part Build Rating . | . . . . . . . . . . . Parts Repaired . | . . . . . . . . . . . Time . | . . . . . . . . . . . Parts Recycled . | . . . . . . . . . . . Recycled Matter . | . . . . . . . . . . . Retrieved Matter . | . . . . . . . . . . . Retrieved Components . | . . . . . . . . . . . Parts Scanalyzed . | . . . . . . . . . . . Part Schematics Acquired . | . . . . . . . . . . . Parts Damaged . | . . . . . . . . . . . Bothacking | -11 -10 -10 -9 -9 -9 -8 -8 -8 -7 -7 ------------ Run | Scr Mat Min Mat Min Exi Min Mat Gar Fac Gar Used RIF Installer 1 | . . . . . . . . 1 . . Robots Hacked . | . . . . . . . . . . . Non-combat . | . . . . . . . . . . . Combat . | . . . . . . . . . . . Robot Hacks Applied . | . . . . . . . . . . . Relay Couplers Released 10 | . . . . . . . 3 7 . . Machine Destruction 7 | . . . . . . . . 7 . . Programmers 3 | . . . . . . . 3 . . . Fabnet Peak Effective % . | . . . . . . . . . . . Robots Rewired . | . . . . . . . . . . . Allies Hacked . | . . . . . . . . . . . Hacks Repelled . | . . . . . . . . . . . Allies | -11 -10 -10 -9 -9 -9 -8 -8 -8 -7 -7 -------- Run | Scr Mat Min Mat Min Exi Min Mat Gar Fac Gar Total Allies . | . . . . . . . . . . . Largest Group . | . . . . . . . . . . . Highest-Rated Group . | . . . . . . . . . . . Highest-Rated Ally . | . . . . . . . . . . . Total Orders . | . . . . . . . . . . . Ally Attacks . | . . . . . . . . . . . Total Damage . | . . . . . . . . . . . Kills . | . . . . . . . . . . . Allies Corrupted . | . . . . . . . . . . . Allies Melted . | . . . . . . . . . . . Intel | -11 -10 -10 -9 -9 -9 -8 -8 -8 -7 -7 ------- Run | Scr Mat Min Mat Min Exi Min Mat Gar Fac Gar Robot Analysis Total . | . . . . . . . . . . . Derelict Logs Recovered 3 | . . 1 . 2 . . . . . . Drone Launches . | . . . . . . . . . . . Drone Recoveries . | . . . . . . . . . . . Exploration | -11 -10 -10 -9 -9 -9 -8 -8 -8 -7 -7 ------------- Run | Scr Mat Min Mat Min Exi Min Mat Gar Fac Gar Turns Passed 5409 | 2 302 494 439 802 325 194 288 1681 878 4 Spaces Moved 2523 | 1 130 285 129 207 260 100 134 720 550 7 Core 85 | . . . . . . . . . 78 7 Treads 1421 | . 80 285 46 . . . 10 528 472 . Legs 703 | 1 50 . 83 207 260 100 2 . . . Wheels 314 | . . . . . . . 122 192 . . Hover . | . . . . . . . . . . . Flight . | . . . . . . . . . . . Fastest Speed 50 | 120 120 160 160 190 120 190 125 155 50 50 Average Speed 156 | 120 144 160 190 190 124 190 153 158 144 50 Slowest Speed 260 | 120 160 160 240 190 190 260 240 160 160 50 Overloaded Moves . | . . . . . . . . . . . Propulsion Burnouts . | . . . . . . . . . . . Robots Hopped . | . . . . . . . . . . . Cave-ins Triggered . | . . . . . . . . . . . Exploration Rate (%) 35 | 2 27 76 21 44 65 22 21 83 28 4 Regions Visited 10 Branch Regions 4 Pre-discovered Areas 1 | . . . . 1 . . . . . . Known Exits Taken 4 | . 1 . 1 . . . 1 . 1 . Unknown Exits Taken 5 | 1 . 1 . 1 1 1 . . . . Scrap Searched 1 | . . . . . . 1 . . . . Spaces Dug 192 | . . . 15 . . 22 . 155 . . Terrain Destroyed 480 | . . . 40 45 . 22 4 324 45 . Melee . | . . . . . . . . . . . Projectile 9 | . . . . . . . . . 9 . AOE 471 | . . . 40 45 . 22 4 324 36 . Terrain Rammed . | . . . . . . . . . . . Walls Destroyed . | . . . . . . . . . . . Machines Disabled . | . . . . . . . . . . . Actions | -11 -10 -10 -9 -9 -9 -8 -8 -8 -7 -7 --------- Run | Scr Mat Min Mat Min Exi Min Mat Gar Fac Gar Total 3435 | 1 185 300 228 611 263 102 189 929 619 8 Wait 513 | . 11 1 31 399 . . 12 34 25 . Move 2513 | . 129 284 128 206 259 99 133 718 550 7 Hop . | . . . . . . . . . . . Pick Up 45 | . 3 1 11 . . . 10 12 8 . Fast Attach 19 | . 2 . 1 1 1 . 5 5 4 . Attach 25 | . 3 1 3 1 1 . 5 5 5 1 Detach 2 | . . . . 1 . . . . 1 . Swap 20 | 1 3 . 2 . . . 4 10 . . Drop 27 | . 3 . . . 2 . 2 12 8 . Fire 189 | . 31 12 49 3 . 2 16 66 10 . Melee . | . . . . . . . . . . . Ram 5 | . . . . . . . 2 . 3 . Kick 71 | . . . 3 . . 1 . 67 . . Crush 6 | . . 1 . . . . . . 5 . Escape Stasis . | . . . . . . . . . . . Rewire . | . . . . . . . . . . . Trap . | . . . . . . . . . . . Miscellaneous . | . . . . . . . . . . . Route ------- -11/Scrapyard -10/Materials -10/Mines -9/Materials -9/Mines -9/Exiles -8/Mines -8/Materials (discovered 2 exits: Sto / Gar) -8/Garrison (discovered 4 exits: *Fac x3 / [*Mat]) -7/Factory (discovered 2 exits: [*Low] / Gar) -7/Garrison History --------- Turn | Location | Event 3 | -11/Scrapyard | Discovered new exit (range 0) 3 | -11/Scrapyard | Entered Materials 168 | -10/Materials | Core integrity fell below 50% 173 | -10/Materials | Lost 4 parts (1p2n1w) 175 | -10/Materials | Destroyed 8 combat bots 262 | -10/Materials | Identified exit to Mines 305 | -10/Materials | Build established: Mutant 305 | -10/Materials | Entered Mines 365 | -10/Mines | Met a Derelict bent on vengeance 600 | -10/Mines | Found the Drone Emporium 607 | -10/Mines | Found Prototype Device 790 | -10/Mines | Learned Materials stockpile data 791 | -10/Mines | Discovered new exit (range 3) 799 | -10/Mines | Entered Materials 799 | -9/Materials | Evolved 2 slots: Utility x2 799 | -9/Materials | Identified Splice Drone Bay 952 | -9/Materials | Identified exit to Mines 1227 | -9/Materials | Lost 3 parts (1p1u1w) 1238 | -9/Materials | Entered Mines 1262 | -9/Mines | Assembled infested the area 1846 | -9/Mines | Learned location of Storage (-8) 1926 | -9/Mines | Found a damaged Exp. Sensor Array with a note attached 1930 | -9/Mines | Found Prototype Device 1930 | -9/Mines | Identified Exp. Sensor Array 2011 | -9/Mines | Received a Rocket Launcher from a helpful Derelict 2032 | -9/Mines | Deemed a non-threat by the Exiles lab entrance 2032 | -9/Mines | Discovered new exit (range 5) 2040 | -9/Mines | Entered Exiles 2081 | -9/Exiles | Met 8R-AWN 2100 | -9/Exiles | Met EX-HEX 2199 | -9/Exiles | Met EX-BIN 2213 | -9/Exiles | Aligned with FarCom system 2214 | -9/Exiles | Given EX-Vault access code 2242 | -9/Exiles | Opened EX-Vault 2248 | -9/Exiles | Found Modified TNC 2275 | -9/Exiles | Warned to stay clear of 0b10 Research branches 2308 | -9/Exiles | Met EX-DEC 2350 | -9/Exiles | Discovered new exit (range 14) 2365 | -9/Exiles | Left Exiles lab with Modified TNC 2365 | -9/Exiles | Entered Mines 2552 | -8/Mines | Discovered new exit (range 5) 2557 | -8/Mines | Core integrity fell below 50% 2559 | -8/Mines | Entered Materials 2559 | -8/Materials | Evolved 2 slots: Utility x2 2560 | -8/Materials | Identified exit to Storage 2791 | -8/Materials | Identified exit to Garrison 2847 | -8/Materials | Entered Garrison 2885 | -8/Garrison | Triggered checkpoint 2938 | -8/Garrison | Lost 3 parts (2n1u) 2944 | -8/Garrison | Garrison Relay disabled 3212 | -8/Garrison | Build established: Scavenger-Mutant 3640 | -8/Garrison | Triggered checkpoint 3697 | -8/Garrison | Discovered new exit (range 10) 3794 | -8/Garrison | Triggered checkpoint 3834 | -8/Garrison | Garrison Relay disabled 3946 | -8/Garrison | Triggered checkpoint 4046 | -8/Garrison | Discovered new exit (range 11) 4094 | -8/Garrison | Triggered checkpoint 4249 | -8/Garrison | Triggered checkpoint 4257 | -8/Garrison | Core integrity fell below 50% 4276 | -8/Garrison | Discovered new exit (range 8) 4358 | -8/Garrison | Triggered checkpoint 4409 | -8/Garrison | Discovered new exit (range 10) 4480 | -8/Garrison | Installed Relay Interface Framework 4528 | -8/Garrison | Entered Factory 4528 | -7/Factory | Evolved 2 slots: Utility x1, Weapon x1 5140 | -7/Factory | Build established: Bothacker-Skirmisher 5318 | -7/Factory | Discovered new exit (range 7) 5328 | -7/Factory | First assault squad dispatched 5363 | -7/Factory | Core integrity fell below 50% 5372 | -7/Factory | Core integrity fell below 20% 5380 | -7/Factory | Lost 6 parts (1p1n1u3w) 5406 | -7/Factory | Identified exit to Garrison 5406 | -7/Factory | Entered Garrison 5410 | -7/Garrison | Destroyed by S-27 Virus with Autogun Last Messages --------------- 05350_ Slammed into Y-54 Guardian. 05357_ M-13 Machinist repairs Y-54 Guardian. 05359_ M-13 Machinist destroyed. 05360_ Dropped Hcp. Storage Unit. 05361_ Dropped Assault Rifle. 05361_ Dropped Coolant Injector. 05362_ Dropped Exp. Sensor Array. 05364_ Acquired Mni. Grenade Launcher. 05366_ Acquired Remote Datajack. 05376_ Slammed into W-25 Informer. 05396_ Detecting nearby Garrison Access. 05406_ Connecting with Garrison Access... >>Unlock Access door unlocked. 05406_ EXIT=UNLOCKED: GARRISON LOCATION=GARRISON GOAL=ESCAPE 05406_ Receiving FarCom transmissions... 05410_ C-30 ARC bursts open, deploying its payload. 05410_ S-27 Virus unfolds itself. Map ----- +----------------------------------------------------+ | ?????????????????????????????????????????????????? | | ?????????????????????????????????????????????????? | | ?????????????????????????????????????????????????? | | ?????????????????????????????????????????????????? | | ?????????????????????????????????????????????????? | | ?????????????????????????????????????????????????? | | ?????????????????????????????????????????????????? | | ?????????????????????????????????????????????????? | | ?????????????????????????????????????????????????? | | ?????????????????????????????????????????????????? | | ?????????????????????????????????????????????????? | | ?????????????????????????????????????????????????? | | ?????????????????????????????????????????????????? | | ?????????"""?????????????????????????????????????? | | ?????????"?"?????????????????????????????????????? | | ?????????"?"?????????????????????????????????????? | | ?????????"?"??????????######?????????????????????? | | ??????????????????????# #?????????????????????? | | ??????????????????????# #?????????????????????? | | ??????????????????????# #?????????????????????? | | ??????????????????????### #?????????????????????? | | ????????????????????????# #?????????????????????? | | ????????????????????????# #?????????????????????? | | ????????????????????????# #?????????????????????? | | ?????????????#s////###### #?????????????????????? | | ?????????# ss @ #?????????????????????? | | ???????????????"""####### ??????????????????? | | ?????????????????Y??????# #??????????????? | | ????????????????????????######## #??????????????? | | ????????????g?????????????????????#??????????????? | | ????????????g????????????????????????????????????? | | ?????????????????????????????????????????????????? | | ?????????????????????????????????????????????????? | | ?????????????????????????????????????????????????? | | ???????????????????????????????????????C?????????? | | ?????????????????????????????????????????????????? | | ????????????????????????????????????s????????????? | | ????????????????????????????????????ss???????????? | | ?????????????????????????????????????s???????????? | | ?????????????????????????????????????????????????? | | ?????????????????????????????????????????????????? | | ?????????????????????????????g???????????????????? | | ?????????????????????????????????????????????????? | | ?????????????????????????????????????????????????? | | ?????????????????????????????????????????????????? | | ?????????????????????????????????????????????????? | | ?????????????????????????????????????????????????? | | ?????????????????????????????????????????????????? | | ?????????????????????????????????????????????????? | | ?????????????????????????????????????????????????? | +----------------------------------------------------+ Best States ------------- Heat Dissipation 67 Coolant Potential 65 Energy Generation 18 Energy Capacity 265 Matter Stores 300 Matter Capacity 300 Sight Range 20 Terrain Scan Density 10 Armor Coverage 150 Evasion (%) 55 Targeting Accuracy 12 Recoil Reduction 2 Offensive Hacking 10 Defensive Hacking 10 Item Schematics ----------------- Datajack | -8/Materials | Hacked Robot Schematics ------------------ None Fabricated ------------ Nothing Alien Tech Used ----------------- None Achievements -------------- None Challenges ------------ None Game ------ Seed ModifiedGhostExoskeleton Manual? 0 Play Time 00:37:59 Cumulative 270.4 hours Start 2022.08.02 @ 11:43:45 End 2022.08.02 @ 13:52:26 Sessions 1 Manual Loads 0 Difficulty Rogue Special Mode None Game No. 319 Rogue 319 Adventurer 0 Explorer 0 Win Type - Total 11 Types 8/0/2/1/0/0/0/0/0 Lore% 70 Gallery% 87 Achievement% 74 Wizard Run 0 Options --------- ASCII 0 Keyboard 0 Movement Numpad Keybinds 0 Fullscreen 1 Font 18/Terminus Map View 76x50 Tactical HUD 1 Map Filters NONE Filters NONE Steam 1 RUN: 2ec11e1d-35a0-4cf2-8d74-d7a8f2e4e238